fUST/lending_fUST_20250821
["ID","MTS","AMOUNT","RATE_DAILY","PERIOD"]
[380371394,1755709841620,-151.0,0.00025255,2]
[380371395,1755709841629,-151.0,0.00025255,2]
[380371396,1755709841638,-151.0,0.00025255,2]
[380371397,1755709841647,-151.13703646,0.00025255,2]
[380371398,1755709841656,-151.0,0.00025255,2]
[380371399,1755709841666,-151.37947602,0.00025255,2]
[380371400,1755709841675,-500.0,0.00025255,2]
[380371401,1755709841685,-500.0,0.00025255,2]
[380371402,1755709841694,-200.0,0.0002528,12]
[380371403,1755709841704,-180.67183153,0.00025295,2]
[380371404,1755709841714,-481.97188186,0.00025295,2]
[380371405,1755709841730,-1925.95963992,0.00025295,2]
[380371406,1755709841739,-603.78834712,0.00025295,2]
[380371407,1755709841748,-151.0,0.000253,16]
[380371408,1755709841759,-720.0,0.00025345,20]
[380371409,1755709841769,-250.0,0.00025421,2]
[380371410,1755709841779,-587.0,0.00025422,2]
[380371411,1755709841790,-500.0,0.00025529,2]
[380371412,1755709841799,-151.0,0.00025529,2]
[380371413,1755709841808,-151.0,0.00025529,2]
[380371414,1755709841818,-151.0,0.00025529,2]
[380371415,1755709841827,-151.0,0.00025529,2]
[380371416,1755709841836,-151.0,0.00025529,2]
[380371417,1755709841845,-151.000001,0.00025529,2]
[380371418,1755709841854,-151.0,0.00025529,2]
[380371419,1755709841863,-500.0,0.00025529,2]
[380371420,1755709841873,-29.28284376,0.00025529,2]
[380371421,1755709841886,-470.71715624,0.00025529,2]
[380371422,1755709841895,-33.60302681,0.00025567,2]
[380371423,1755709841949,-326.39697319,0.00025567,2]
[380371424,1755709841961,-1512.72430546,0.0002559,2]
[380371425,1755709841970,-1503.30183902,0.00025626,2]
[380371426,1755709841979,-1500.0,0.00025626,2]
[380371427,1755709841989,-502.42720489,0.00025626,2]
[380371428,1755709841998,-173.39337669,0.000257,3]
[380371429,1755709842007,-326.0,0.000257,3]
[380371430,1755709842017,-326.0,0.000257,3]
[380371431,1755709842026,-326.0,0.000257,3]
[380371432,1755709842035,-326.0,0.000257,3]
[380371433,1755709842044,-326.0,0.000257,3]
[380371434,1755709842053,-326.0,0.000257,3]
[380371435,1755709842062,-326.0,0.000257,3]
[380371436,1755709842071,-326.0,0.000257,3]
[380371437,1755709842081,-326.0,0.000257,3]
[380371438,1755709842090,-326.0,0.000257,3]
[380371439,1755709842099,-326.0,0.000257,3]
[380371440,1755709842108,-326.0,0.000257,3]
[380371441,1755709842117,-282.85812007,0.000257,3]
[380371442,1755709842126,-160.0,0.000257,3]
[380371443,1755709842136,-151.0,0.000257,19]
[380371444,1755709842145,-417.15472785,0.000257,3]
[380371445,1755709842154,-800.0,0.00025748,2]
[380371446,1755709842165,-753.0,0.00025781,2]
[380371447,1755709842174,-414.83488491,0.00025803,2]
[380371448,1755709842183,-151.0,0.00025803,2]
[380371449,1755709842192,-267.1081954,0.00025803,2]
[380371450,1755709842202,-198.0,0.00025803,2]
[380371451,1755709842211,-198.0,0.00025803,2]
[380371452,1755709842220,-198.0,0.00025803,2]
[380371453,1755709842229,-151.0,0.00025803,2]
[380371454,1755709842239,-500.0,0.00025803,2]
[380371455,1755709842248,-606.99844517,0.00025864,2]
[380371456,1755709842257,-11586.98550157,0.000259,2]
[380371458,1755709842347,-258.75562732,0.000259,2]
[380371459,1755709842359,-2596.89754389,0.000259,2]
[380371460,1755709842832,-2479.22732427,0.000259,2]
[380371461,1755709842887,-303.84752477,0.000259,2]
[380371462,1755709842899,-1190.36478622,0.000259,2]
[380371463,1755709842910,-6008.19169196,0.000259,2]
[380371464,1755709842921,-3713.27386222,0.000259,2]
[380371465,1755709842931,-753.0,0.00025901,2]
[380371466,1755709842940,-196.10485155,0.00025968,2]
[380371467,1755709842949,-1424.58432212,0.00026,15]
[380371468,1755709842960,-46976.89378283,0.00026,15]
[380371481,1755709845877,-51124.61508325,0.00026,15]
[380371639,1755710508228,158.420864,0.00013699,2]
[380371928,1755710848879,150.0,0.000189,2]
[380371929,1755710854099,-494.88102813,0.000211,2]
[380371930,1755710920057,211.60579412,0.00016,2]
[380371931,1755710923451,708.57722818,0.00018,2]
[380371932,1755710923479,15910.67491633,0.00018,2]
[380371933,1755710945191,-302.0,0.00021,2]
[380371934,1755710945212,-202.573938,0.00021188,2]
[380371935,1755710945232,-286.15369234,0.000212,2]
[380371936,1755710945253,-1161.81003357,0.00022073,2]
[380371937,1755710945274,-1200.0,0.0002217,2]
[380371938,1755710945295,-300.0,0.0002217,2]
[380371939,1755710945314,-50000.0,0.00022171,2]
[380371940,1755710945334,-300.0,0.00022171,2]
[380371941,1755710945354,-1200.0,0.00022171,2]
[380371942,1755710945373,-300.0,0.00022171,2]
[380371943,1755710945396,-300.0,0.00022171,2]
[380371944,1755710945415,-300.0,0.00022171,2]
[380371945,1755710945434,-998.80143827,0.00022172,2]
[380371946,1755710945452,-553.85251724,0.00022173,2]
[380371947,1755710945472,-500.0,0.00022173,2]
[380371948,1755710945491,-500.0,0.00022173,2]
[380371949,1755710945509,-500.0,0.00022173,2]
[380371950,1755710945529,-500.0,0.00022173,2]
[380371951,1755710945548,-500.0,0.00022173,2]
[380371952,1755710945567,-500.0,0.00022173,2]
[380371953,1755710945587,-500.0,0.00022173,2]
[380371954,1755710945617,-506.38989505,0.00022173,2]
[380371955,1755710945647,-500.89329895,0.00022173,2]
[380371956,1755710945667,-500.0,0.00022173,2]
[380371957,1755710945688,-500.0,0.00022173,2]
[380371958,1755710945708,-502.14370261,0.00022173,2]
[380371959,1755710945728,-500.0,0.00022173,2]
[380371960,1755710945747,-500.0,0.00022173,2]
[380371961,1755710945768,-500.0,0.00022173,2]
[380371962,1755710945788,-212.64944664,0.00022173,2]
[380371963,1755710945808,-500.0,0.00022173,2]
[380371964,1755710945828,-500.0,0.00022173,2]
[380371965,1755710945848,-500.0,0.00022173,2]
[380371966,1755710945868,-500.0,0.00022173,2]
[380371967,1755710945890,-163.76535796,0.00022173,2]
[380371968,1755710945909,-500.0,0.00022173,2]
[380371969,1755710945931,-160.0,0.00022189,2]
[380371970,1755710945951,-3167.62371182,0.000222,2]
[380371971,1755710945971,-3100.34836702,0.000222,2]
[380371972,1755710945990,-501.37347612,0.00022273,2]
[380371973,1755710946010,-636.69712946,0.00022273,2]
[380371974,1755710946031,-500.72930756,0.00022273,2]
[380371975,1755710946051,-500.0,0.00022273,2]
[380371976,1755710946071,-500.0,0.00022273,2]
[380371977,1755710946091,-500.0,0.00022273,2]
[380371978,1755710946111,-501.98214509,0.00022273,2]
[380371979,1755710946131,-296.30444005,0.00022273,2]
[380371980,1755710946154,-500.0,0.00022273,2]
[380371981,1755710946173,-500.0,0.00022273,2]
[380371982,1755710946329,-500.0,0.00022273,2]
[380371983,1755710946351,-500.0,0.00022273,2]
[380371984,1755710946371,-500.0,0.00022273,2]
[380371985,1755710946392,-500.0,0.00022273,2]
[380371986,1755710946412,-500.0,0.00022273,2]
[380371987,1755710946433,-500.0,0.00022273,2]
[380371988,1755710946453,-500.0,0.00022273,2]
[380371989,1755710946472,-500.0,0.00022273,2]
[380371990,1755710946492,-500.0,0.00022273,2]
[380371991,1755710946511,-500.0,0.00022273,2]
[380371992,1755710946530,-500.0,0.00022273,2]
[380371993,1755710946549,-501.83718057,0.00022273,2]
[380371994,1755710946568,-508.52762757,0.00022273,2]
[380371995,1755710946588,-500.0,0.00022273,2]
[380371996,1755710946609,-501.5403866,0.00022273,2]
[380371997,1755710946628,-502.76678058,0.00022273,2]
[380371998,1755710946648,-501.24782479,0.00022273,2]
[380371999,1755710946670,-503.6102621,0.00022273,2]
[380372000,1755710946690,-500.97096054,0.00022273,2]
[380372001,1755710946710,-500.0,0.00022273,2]
[380372002,1755710946731,-500.0,0.00022273,2]
[380372003,1755710946751,-500.0,0.00022273,2]
[380372004,1755710946772,-500.0,0.00022273,2]
[380372005,1755710946795,-500.0,0.00022273,2]
[380372006,1755710946816,-345.42670777,0.00022273,2]
[380372007,1755710946836,-500.0,0.00022273,2]
[380372008,1755710946857,-160.0,0.00022289,2]
[380372009,1755710946877,-375.94359665,0.00022289,2]
[380372010,1755710946898,-844.05985274,0.00022289,2]
[380372011,1755710946917,-232.24568399,0.00022289,2]
[380372012,1755710946937,-150.0,0.00022289,2]
[380372013,1755710946957,-500.0,0.00022289,2]
[380372014,1755710946976,-328.03308161,0.00022289,2]
[380372015,1755710946996,-500.0,0.00022289,2]
[380372016,1755710947021,-500.0,0.00022289,2]
[380372017,1755710947043,-500.0,0.00022289,2]
[380372018,1755710947063,-500.0,0.00022289,2]
[380372019,1755710947085,-500.0,0.00022289,2]
[380372020,1755710947107,-500.0,0.00022289,2]
[380372021,1755710947127,-500.0,0.00022289,2]
[380372022,1755710947149,-500.0,0.00022289,2]
[380372023,1755710947170,-500.0,0.00022289,2]
[380372024,1755710947190,-500.0,0.00022289,2]
[380372025,1755710947210,-500.0,0.00022289,2]
[380372026,1755710947230,-500.0,0.00022289,2]
[380372027,1755710947251,-500.0,0.00022289,2]
[380372028,1755710947271,-500.0,0.00022289,2]
[380372029,1755710947292,-500.0,0.00022289,2]
[380372030,1755710947313,-500.0,0.00022289,2]
[380372031,1755710947335,-500.0,0.00022289,2]
[380372032,1755710947354,-500.0,0.00022289,2]
[380372033,1755710947376,-500.0,0.00022289,2]
[380372034,1755710947398,-500.0,0.00022289,2]
[380372035,1755710947418,-500.0,0.00022289,2]
[380372036,1755710947438,-500.0,0.00022289,2]
[380372037,1755710947458,-500.0,0.00022289,2]
[380372038,1755710947478,-240.09823094,0.00022289,2]
[380372039,1755710947497,-500.0,0.00022289,2]
[380372040,1755710947517,-500.0,0.00022289,2]
[380372041,1755710947538,-500.0,0.00022289,2]
[380372042,1755710947558,-500.0,0.00022289,2]
[380372043,1755710947577,-500.0,0.00022289,2]
[380372044,1755710947596,-500.0,0.00022289,2]
[380372045,1755710947616,-461.70224056,0.00022289,2]
[380372046,1755710947637,-500.0,0.00022289,2]
[380372047,1755710947658,-500.0,0.00022289,2]
[380372048,1755710947678,-500.0,0.00022289,2]
[380372049,1755710947698,-500.0,0.00022289,2]
[380372050,1755710947719,-500.0,0.00022289,2]
[380372051,1755710947739,-500.0,0.00022289,2]
[380372052,1755710947760,-500.0,0.00022289,2]
[380372053,1755710947780,-500.0,0.00022289,2]
[380372054,1755710947801,-500.0,0.00022289,2]
[380372055,1755710947822,-200.0,0.00022289,2]
[380372056,1755710947843,-500.0,0.00022289,2]
[380372057,1755710947864,-500.0,0.00022289,2]
[380372058,1755710947884,-500.0,0.00022289,2]
[380372059,1755710947906,-500.0,0.00022289,2]
[380372060,1755710947926,-500.0,0.00022289,2]
[380372061,1755710947947,-500.0,0.00022289,2]
[380372062,1755710947967,-222.55261155,0.00022289,2]
[380372063,1755710947986,-500.0,0.00022289,2]
[380372064,1755710948004,-500.0,0.00022289,2]
[380372065,1755710948026,-500.0,0.00022289,2]
[380372066,1755710948044,-500.0,0.00022289,2]
[380372067,1755710948063,-500.0,0.00022289,2]
[380372068,1755710948083,-500.0,0.00022289,2]
[380372069,1755710948104,-481.75758483,0.00022289,2]
[380372070,1755710948124,-500.0,0.00022289,2]
[380372071,1755710948145,-500.0,0.00022289,2]
[380372072,1755710948164,-500.0,0.00022289,2]
[380372073,1755710948184,-500.0,0.00022289,2]
[380372074,1755710948204,-500.0,0.00022289,2]
[380372075,1755710948224,-186.07919757,0.00022289,2]
[380372076,1755710948244,-365.85078944,0.00022289,2]
[380372077,1755710948264,-500.0,0.00022289,2]
[380372078,1755710948284,-500.0,0.00022289,2]
[380372079,1755710948307,-370.83408839,0.00022289,2]
[380372080,1755710948329,-500.0,0.00022289,2]
[380372081,1755710948350,-500.0,0.00022289,2]
[380372082,1755710948372,-500.0,0.00022289,2]
[380372083,1755710948391,-500.0,0.00022289,2]
[380372084,1755710948414,-500.0,0.00022289,2]
[380372085,1755710948436,-500.0,0.00022289,2]
[380372086,1755710948457,-453.48293658,0.00022289,2]
[380372087,1755710948478,-500.0,0.00022289,2]
[380372088,1755710948500,-500.0,0.00022289,2]
[380372089,1755710948523,-500.0,0.00022289,2]
[380372090,1755710948545,-500.0,0.00022289,2]
[380372091,1755710948567,-500.0,0.00022289,2]
[380372092,1755710948587,-500.0,0.00022289,2]
[380372093,1755710948607,-500.0,0.00022289,2]
[380372094,1755710948629,-500.0,0.00022289,2]
[380372095,1755710948738,-500.0,0.00022289,2]
[380372096,1755710948766,-500.0,0.00022289,2]
[380372097,1755710948789,-500.0,0.00022289,2]
[380372098,1755710948811,-500.0,0.00022289,2]
[380372099,1755710948833,-238.56573292,0.00022289,2]
[380372100,1755710948854,-500.0,0.00022289,2]
[380372101,1755710948876,-500.0,0.00022289,2]
[380372102,1755710948900,-500.0,0.00022289,2]
[380372103,1755710948922,-500.0,0.00022289,2]
[380372104,1755710948942,-500.0,0.00022289,2]
[380372105,1755710948963,-500.0,0.00022289,2]
[380372106,1755710948984,-500.0,0.00022289,2]
[380372107,1755710949004,-188.01772376,0.00022289,2]
[380372108,1755710949029,-500.0,0.00022289,2]
[380372109,1755710949051,-500.0,0.00022289,2]
[380372110,1755710949074,-500.0,0.00022289,2]
[380372111,1755710949098,-500.0,0.00022289,2]
[380372112,1755710949122,-500.0,0.00022289,2]
[380372113,1755710949147,-500.0,0.00022289,2]
[380372114,1755710949170,-500.0,0.00022289,2]
[380372115,1755710949191,-500.0,0.00022289,2]
[380372116,1755710949212,-500.0,0.00022289,2]
[380372117,1755710949233,-460.16008256,0.00022289,2]
[380372118,1755710949254,-500.0,0.00022289,2]
[380372119,1755710949275,-500.0,0.00022289,2]
[380372120,1755710949296,-500.0,0.00022289,2]
[380372121,1755710949315,-500.0,0.00022289,2]
[380372122,1755710949337,-554.75,0.00022289,2]
[380372123,1755710949358,-196.1478466,0.00022289,2]
[380372124,1755710949378,-125610.8191194,0.0002229,2]
[380372125,1755710949535,-59298.33323093,0.0002229,2]
[380372142,1755711032282,-698.41475284,0.00021621,2]
[380372143,1755711032291,-368.0,0.00021718,2]
[380372144,1755711032300,-604.97697233,0.00022273,2]
[380372145,1755711032309,-1129.0,0.00022289,2]
[380372146,1755711032318,-300.0,0.00022289,2]
[380372147,1755711032327,-59203.46653019,0.0002229,2]
[380372148,1755711032339,-24974.49276259,0.0002229,2]
[380372149,1755711032350,-418.22366975,0.0002229,2]
[380372150,1755711032361,-17485.49422787,0.0002229,2]
[380372186,1755711038255,-54.9867809,0.0002229,2]
[380372188,1755711038267,-82954.18367837,0.0002229,2]
[380372190,1755711038276,-375.94359665,0.000223,7]
[380372192,1755711038285,-10199.69,0.000223,7]
[380372194,1755711038294,-5417.28,0.000223,7]
[380372196,1755711038303,-1147.83,0.000223,7]
[380372198,1755711038312,-215.82729805,0.000223,7]
[380372200,1755711038321,-1000.0,0.00022572,2]
[380372202,1755711038330,-1000.0,0.00022572,2]
[380372204,1755711038339,-1000.0,0.00022572,2]
[380372206,1755711038348,-1000.0,0.00022572,2]
[380372208,1755711038357,-1000.0,0.00022572,2]
[380372210,1755711038366,-1000.0,0.00022588,2]
[380372212,1755711038375,-253.45067899,0.00022589,2]
[380372214,1755711038384,-300.0,0.00022613,20]
[380372216,1755711038393,-300.0,0.00022613,20]
[380372218,1755711038402,-300.0,0.00022613,20]
[380372220,1755711038411,-300.0,0.00022614,20]
[380372222,1755711038420,-300.0,0.00022614,20]
[380372224,1755711038430,-300.0,0.00022614,20]
[380372226,1755711038439,-300.0,0.00022614,20]
[380372229,1755711038448,-500.39064914,0.00022721,2]
[380372231,1755711038458,-506.02925898,0.00022721,2]
[380372233,1755711038467,-501.86227573,0.00022721,2]
[380372235,1755711038477,-500.0,0.00022721,2]
[380372237,1755711038487,-500.0,0.00022721,2]
[380372239,1755711038497,-1161.81003357,0.00022797,2]
[380372241,1755711038506,-185.06511463,0.00022821,2]
[380372243,1755711038516,-500.0,0.00022821,2]
[380372245,1755711038525,-1000.0,0.00022821,2]
[380372247,1755711038535,-1000.0,0.00022821,2]
[380372249,1755711038544,-500.0,0.00022821,2]
[380372251,1755711038553,-501.73351215,0.00022821,2]
[380372253,1755711038562,-581.0009137,0.00022822,2]
[380372255,1755711038571,-581.0009137,0.00022822,2]
[380372257,1755711038580,-475.0171241,0.00022822,2]
[380372259,1755711038589,-598.02522714,0.00022911,2]
[380372261,1755711038598,-491.3180359,0.00022911,2]
[380372263,1755711038607,-172.75,0.00022911,2]
[380372265,1755711038616,-548.36005793,0.00022911,2]
[380372267,1755711038627,-500.0,0.00022911,2]
[380372269,1755711038636,-500.0,0.00022911,2]
[380372271,1755711038645,-567.86639638,0.00022911,2]
[380372273,1755711038654,-500.0,0.00022911,2]
[380372275,1755711038663,-500.0,0.00022911,2]
[380372277,1755711038672,-500.0,0.00022911,2]
[380372279,1755711038682,-500.0,0.00022911,2]
[380372281,1755711038691,-8760.78233505,0.00022912,2]
[380372283,1755711038700,-158.420864,0.00023182,2]
[380372285,1755711038709,-1161.81003357,0.00023521,2]
[380372287,1755711038719,-151.0,0.000236,8]
[380372289,1755711038728,-500.0,0.00023618,2]
[380372291,1755711038738,-151.0,0.00023618,2]
[380372293,1755711038748,-151.0,0.00023618,2]
[380372295,1755711038757,-257.03751331,0.00023618,2]
[380372297,1755711038766,-151.0,0.00023618,2]
[380372299,1755711038775,-151.0,0.00023618,2]
[380372301,1755711038785,-151.0,0.00023618,2]
[380372303,1755711038794,-151.0,0.00023618,2]
[380372305,1755711038803,-151.0,0.00023618,2]
[380372307,1755711038812,-300.0,0.00023618,2]
[380372309,1755711038821,-151.0,0.00023618,2]
[380372311,1755711038831,-151.0,0.00023618,2]
[380372313,1755711038840,-151.0,0.00023618,2]
[380372315,1755711038849,-151.0,0.00023618,2]
[380372317,1755711038865,-300.0,0.00023618,2]
[380372319,1755711038876,-151.0,0.00023618,2]
[380372322,1755711038888,-151.0,0.00023618,2]
[380372323,1755711038898,-151.0,0.00023618,2]
[380372325,1755711038907,-300.0,0.00023618,2]
[380372327,1755711038916,-151.0,0.00023618,2]
[380372329,1755711038925,-151.0,0.00023618,2]
[380372331,1755711038934,-300.0,0.00023618,2]
[380372333,1755711038943,-151.0,0.00023618,2]
[380372335,1755711038952,-151.0,0.00023618,2]
[380372337,1755711038961,-151.0,0.00023618,2]
[380372339,1755711038970,-300.0,0.00023618,2]
[380372341,1755711038979,-151.0,0.00023618,2]
[380372343,1755711038990,-151.0,0.00023618,2]
[380372345,1755711038999,-151.0,0.00023618,2]
[380372347,1755711039008,-300.0,0.00023618,2]
[380372349,1755711039017,-151.0,0.00023618,2]
[380372351,1755711039026,-151.0,0.00023618,2]
[380372353,1755711039036,-151.0,0.00023618,2]
[380372355,1755711039047,-151.0,0.00023618,2]
[380372357,1755711039056,-151.0,0.00023618,2]
[380372359,1755711039065,-300.0,0.00023618,2]
[380372361,1755711039075,-151.0,0.00023618,2]
[380372363,1755711039085,-151.0,0.00023618,2]
[380372365,1755711039095,-151.0,0.00023618,2]
[380372367,1755711039103,-300.0,0.00023618,2]
[380372369,1755711039113,-151.0,0.00023618,2]
[380372371,1755711039123,-2183.31810187,0.00023618,2]
[380372373,1755711039132,-151.0,0.00023618,2]
[380372375,1755711039141,-151.0,0.00023618,2]
[380372377,1755711039150,-151.0,0.00023618,2]
[380372379,1755711039159,-151.0,0.00023618,2]
[380372381,1755711039168,-300.0,0.00023618,2]
[380372383,1755711039178,-151.0,0.00023618,2]
[380372385,1755711039187,-151.0,0.00023618,2]
[380372387,1755711039196,-151.0,0.00023618,2]
[380372389,1755711039205,-151.0,0.00023618,2]
[380372391,1755711039214,-300.0,0.00023618,2]
[380372393,1755711039224,-151.0,0.00023618,2]
[380372395,1755711039234,-151.0,0.00023618,2]
[380372397,1755711039244,-151.0,0.00023618,2]
[380372399,1755711039254,-151.0,0.00023618,2]
[380372401,1755711039263,-300.0,0.00023618,2]
[380372403,1755711039272,-151.0,0.00023618,2]
[380372405,1755711039282,-151.0,0.00023618,2]
[380372407,1755711039291,-151.0,0.00023618,2]
[380372409,1755711039300,-300.0,0.00023618,2]
[380372410,1755711039309,-151.0,0.00023618,2]
[380372413,1755711039319,-151.0,0.00023618,2]
[380372415,1755711039329,-151.0,0.00023618,2]
[380372417,1755711039339,-303.37780865,0.00023618,2]
[380372419,1755711039349,-151.0,0.00023618,2]
[380372421,1755711039358,-151.0,0.00023618,2]
[380372423,1755711039367,-151.0,0.00023618,2]
[380372424,1755711039376,-151.0,0.00023618,2]
[380372426,1755711039385,-151.0,0.00023618,2]
[380372428,1755711039394,-151.0,0.00023618,2]
[380372431,1755711039404,-151.0,0.00023618,2]
[380372432,1755711039413,-151.0,0.00023618,2]
[380372434,1755711039422,-151.0,0.00023618,2]
[380372436,1755711039431,-151.0,0.00023618,2]
[380372438,1755711039440,-151.0,0.00023618,2]
[380372440,1755711039449,-151.0,0.00023618,2]
[380372442,1755711039458,-151.0,0.00023618,2]
[380372444,1755711039467,-152.1850379,0.00023618,2]
[380372446,1755711039476,-1000.0,0.00023618,2]
[380372448,1755711039486,-1000.0,0.00023618,2]
[380372450,1755711039496,-1000.0,0.00023618,2]
[380372452,1755711039505,-19187.29552238,0.00023618,2]
[380372454,1755711039515,-775.0,0.00023618,2]
[380372456,1755711039524,-150.0,0.00023659,2]
[380372458,1755711039534,-2264.10087164,0.00023673,2]
[380372460,1755711039544,-151.0,0.000237,8]
[380372462,1755711039554,-21981.85,0.000237,2]
[380372464,1755711039564,-2347.87260389,0.00023728,2]
[380372466,1755711039573,-2516.44787537,0.00023738,2]
[380372468,1755711039582,-271.0,0.00023751,2]
[380372470,1755711039591,-2516.44787537,0.0002376,2]
[380372472,1755711039600,-251.64478753,0.00023768,2]
[380372474,1755711039609,-2434.74389024,0.00023783,2]
[380372476,1755711039618,-251.64478753,0.00023785,2]
[380372477,1755711039627,-1388.76518428,0.00023787,2]
[380372479,1755711039637,-2534.09896948,0.00023799,2]
[380372481,1755711039645,-602.46485233,0.00023831,2]
[380372482,1755711039654,-2524.82941417,0.00023838,2]
[380372484,1755711039663,-500.0,0.00023873,2]
[380372487,1755711039673,-500.0,0.00023873,2]
[380372488,1755711039681,-500.0,0.00023873,2]
[380372491,1755711039691,-500.0,0.00023873,2]
[380372493,1755711039700,-1000.69307547,0.00023873,2]
[380372495,1755711039711,-500.0,0.00023873,2]
[380372496,1755711039720,-500.0,0.00023873,2]
[380372499,1755711039730,-500.0,0.00023873,2]
[380372502,1755711039742,-500.0,0.00023873,2]
[380372503,1755711039752,-501.34172822,0.00023873,2]
[380372505,1755711039761,-500.0,0.00023873,2]
[380372507,1755711039771,-500.0,0.00023873,2]
[380372509,1755711039781,-500.0,0.00023873,2]
[380372510,1755711039790,-500.0,0.00023892,2]
[380372512,1755711039800,-2618.2481025,0.00023893,2]
[380372514,1755711039810,-27493.39,0.000239,4]
[380372517,1755711039819,-399938.12,0.000239,4]
[380372518,1755711039829,-10199.69,0.000239,7]
[380372520,1755711039840,-5417.28,0.000239,7]
[380372522,1755711039851,-1147.83,0.000239,7]
[380372523,1755711039862,-8702.08643366,0.00023916,2]
[380372525,1755711039872,-160.0,0.00023926,2]
[380372527,1755711039881,-2715.12328229,0.00023948,2]
[380372528,1755711039891,-586.81504302,0.0002398,2]
[380372530,1755711039901,-232.24568399,0.00024,7]
[380372532,1755711039911,-160.0,0.00024,7]
[380372533,1755711039920,-4548.08946416,0.00024,60]
[380372535,1755711039931,-2815.58284374,0.00024003,2]
[380372537,1755711039941,-2534.09896944,0.00024049,2]
[380372539,1755711039951,-3100.34836702,0.0002405,2]
[380372540,1755711039961,-2084.7684532,0.00024058,2]
[380372542,1755711039971,-151.0,0.000241,8]
[380372544,1755711039981,-500.0,0.00024165,2]
[380372546,1755711039993,-1624.24260247,0.00024165,2]
[380372548,1755711040003,-1624.24260247,0.00024165,2]
[380372549,1755711040013,-1624.24260247,0.00024165,2]
[380372551,1755711040023,-500.0,0.00024165,2]
[380372553,1755711040036,-1624.24260247,0.00024165,2]
[380372555,1755711040048,-1624.24260247,0.00024165,2]
[380372556,1755711040057,-1624.24260247,0.00024165,2]
[380372558,1755711040066,-1624.24260247,0.00024165,2]
[380372560,1755711040076,-1624.24260247,0.00024165,2]
[380372562,1755711040084,-1624.24260247,0.00024165,2]
[380372564,1755711040094,-1624.24260247,0.00024165,2]
[380372565,1755711040103,-500.0,0.00024165,2]
[380372567,1755711040113,-1624.24260247,0.00024165,2]
[380372569,1755711040123,-309.45288684,0.00024165,2]
[380372570,1755711040132,-1624.24260247,0.00024165,2]
[380372572,1755711040142,-1624.24260247,0.00024165,2]
[380372574,1755711040151,-1624.24260247,0.00024165,2]
[380372576,1755711040160,-1624.24260247,0.00024165,2]
[380372578,1755711040169,-1624.24260247,0.00024165,2]
[380372579,1755711040178,-1624.24260247,0.00024165,2]
[380372581,1755711040187,-1624.24260247,0.00024165,2]
[380372583,1755711040197,-1624.24260247,0.00024165,2]
[380372585,1755711040207,-1624.24260247,0.00024165,2]
[380372587,1755711040217,-500.0,0.00024166,2]
[380372588,1755711040226,-271.0,0.00024185,2]
[380372590,1755711040236,-298.00612635,0.000242,2]
[380372591,1755711040246,-420.0,0.00024214,2]
[380372593,1755711040255,-1161.81003357,0.00024245,2]
[380372594,1755711040264,-187.0,0.00024265,2]
[380372596,1755711040274,-168.0,0.00024297,2]
[380372599,1755711040285,-2534.09896944,0.000243,2]
[380372611,1755711040408,-187.0,0.00024386,2]
[380372613,1755711040418,-151.0,0.000244,7]
[380372615,1755711040427,-1000.0,0.00024421,2]